[Event "*** Titled Tuesday Blitz"]
[Site "Chess.com"]
[Date "2021.03.30"]
[Round "10"]
[White "GelmanAlexander"]
[Black "Vaathi_Coming"]
[Result "0-1"]
[WhiteElo "2649"]
[BlackElo "2801"]
[TimeControl "180+1"]
[EndTime "11:59:21 PDT"]
[Termination "Vaathi_Coming won on time"]

1. d4 {[%clk 0:03:00.9]} 1... c5 {[%clk 0:02:57.9]} 2. d5 {[%clk 0:03:00.3]}
2... Nf6 {[%clk 0:02:57.9]} 3. Nc3 {[%clk 0:03:00.7]} 3... g6 {[%clk 0:02:56.9]}
4. e4 {[%clk 0:03:01]} 4... d6 {[%clk 0:02:57.8]} 5. f4 {[%clk 0:03:01]} 5...
Bg7 {[%clk 0:02:57.8]} 6. Nf3 {[%clk 0:03:01.3]} 6... O-O {[%clk 0:02:58.1]} 7.
e5 {[%clk 0:03:01.6]} 7... Nfd7 {[%clk 0:02:56.9]} 8. h4 {[%clk 0:02:57.1]} 8...
dxe5 {[%clk 0:02:55.2]} 9. h5 {[%clk 0:02:57.4]} 9... Qb6 {[%clk 0:02:40.7]} 10.
a4 {[%clk 0:02:32.6]} 10... Na6 {[%clk 0:02:37.9]} 11. a5 {[%clk 0:02:32]} 11...
Qc7 {[%clk 0:02:31.4]} 12. g3 {[%clk 0:01:53.3]} 12... Nb4 {[%clk 0:02:22]} 13.
Bc4 {[%clk 0:01:37.4]} 13... a6 {[%clk 0:02:17.8]} 14. hxg6 {[%clk 0:01:35.4]}
14... hxg6 {[%clk 0:02:18.7]} 15. Qe2 {[%clk 0:01:34.3]} 15... b5 {[%clk
0:02:12.3]} 16. axb6 {[%clk 0:01:23]} 16... Qxb6 {[%clk 0:01:56.3]} 17. Qh2
{[%clk 0:01:17.6]} 17... Nf6 {[%clk 0:01:54.1]} 18. fxe5 {[%clk 0:00:53.9]}
18... Nh5 {[%clk 0:01:53.4]} 19. Qh4 {[%clk 0:00:40.4]} 19... Nxc2+ {[%clk
0:01:47.2]} 20. Kd1 {[%clk 0:00:40.6]} 20... Nxa1 {[%clk 0:01:43.8]} 21. g4
{[%clk 0:00:41.1]} 21... Bxg4 {[%clk 0:01:35.8]} 22. Qxg4 {[%clk 0:00:42]} 22...
Nb3 {[%clk 0:01:31.9]} 23. d6 {[%clk 0:00:21]} 23... e6 {[%clk 0:01:13.2]} 24.
Rxh5 {[%clk 0:00:15]} 24... gxh5 {[%clk 0:01:11.3]} 25. Qxh5 {[%clk 0:00:15.9]}
25... Rfd8 {[%clk 0:01:01.8]} 26. Bh6 {[%clk 0:00:11.5]} 26... Rxd6+ {[%clk
0:00:51.6]} 27. exd6 {[%clk 0:00:11.9]} 27... Qxd6+ {[%clk 0:00:52.5]} 28. Kc2
{[%clk 0:00:12]} 28... Nd4+ {[%clk 0:00:48.9]} 29. Nxd4 {[%clk 0:00:12.3]} 29...
Qxd4 {[%clk 0:00:49.5]} 30. Bxg7 {[%clk 0:00:10.5]} 30... Kxg7 {[%clk
0:00:42.6]} 31. Bd3 {[%clk 0:00:09.1]} 31... Rd8 {[%clk 0:00:40.2]} 32. Qg5+
{[%clk 0:00:06.2]} 32... Kf8 {[%clk 0:00:40]} 33. Qh6+ {[%clk 0:00:04.6]} 33...
Ke8 {[%clk 0:00:37.2]} 34. Bxa6 {[%clk 0:00:04.5]} 34... Rb8 {[%clk 0:00:18.3]}
35. Bb5+ {[%clk 0:00:04.1]} 35... Rxb5 {[%clk 0:00:18]} 36. Nxb5 {[%clk
0:00:05]} 36... Qa4+ {[%clk 0:00:18.1]} 37. b3 {[%clk 0:00:03]} 37... Qxb5
{[%clk 0:00:18.5]} 38. Qh8+ {[%clk 0:00:03.4]} 38... Ke7 {[%clk 0:00:15.1]} 39.
Qh4+ {[%clk 0:00:03.3]} 39... Kd7 {[%clk 0:00:15.7]} 40. Qf6 {[%clk 0:00:03.6]}
40... Qe2+ {[%clk 0:00:15.5]} 41. Kc3 {[%clk 0:00:04.2]} 41... Qe3+ {[%clk
0:00:15.2]} 42. Kc2 {[%clk 0:00:04.8]} 42... Qe4+ {[%clk 0:00:15.3]} 43. Kc1
{[%clk 0:00:03.3]} 43... Qf5 {[%clk 0:00:09.7]} 44. Qh8 {[%clk 0:00:03]} 44...
Qf1+ {[%clk 0:00:07.1]} 45. Kc2 {[%clk 0:00:03]} 45... Qf2+ {[%clk 0:00:08]} 46.
Kc1 {[%clk 0:00:03.4]} 46... Qe1+ {[%clk 0:00:07.5]} 47. Kc2 {[%clk 0:00:03.5]}
47... Qe2+ {[%clk 0:00:07.3]} 48. Kc1 {[%clk 0:00:04.1]} 48... Qe3+ {[%clk
0:00:08]} 49. Kc2 {[%clk 0:00:04.6]} 49... Qe4+ {[%clk 0:00:08.4]} 50. Kc1
{[%clk 0:00:05.2]} 50... Qd4 {[%clk 0:00:08.6]} 51. Qf8 {[%clk 0:00:04.4]} 51...
Qc3+ {[%clk 0:00:08.6]} 52. Kb1 {[%clk 0:00:04.8]} 52... Qxb3+ {[%clk
0:00:09.5]} 53. Kc1 {[%clk 0:00:05.7]} 53... Qc3+ {[%clk 0:00:10]} 54. Kb1
{[%clk 0:00:06.2]} 54... Qb4+ {[%clk 0:00:09.6]} 55. Kc1 {[%clk 0:00:06.6]}
55... Qc4+ {[%clk 0:00:09.9]} 56. Kb1 {[%clk 0:00:07.3]} 56... f5 {[%clk
0:00:07.9]} 57. Qf7+ {[%clk 0:00:06]} 57... Kd6 {[%clk 0:00:08.3]} 58. Qf8+
{[%clk 0:00:06.1]} 58... Kd5 {[%clk 0:00:08.5]} 59. Qd8+ {[%clk 0:00:06.2]}
59... Ke4 {[%clk 0:00:08.2]} 60. Qh4+ {[%clk 0:00:06.2]} 60... f4 {[%clk
0:00:08.4]} 61. Qh7+ {[%clk 0:00:05]} 61... Ke3 {[%clk 0:00:07.9]} 62. Qh3+
{[%clk 0:00:04.7]} 62... f3 {[%clk 0:00:08.1]} 63. Qh6+ {[%clk 0:00:03.2]} 63...
Ke2 {[%clk 0:00:06.6]} 64. Qh5 {[%clk 0:00:01.5]} 64... Qb3+ {[%clk 0:00:05.9]}
65. Kc1 {[%clk 0:00:01.8]} 65... Qc3+ {[%clk 0:00:06.6]} 66. Kb1 {[%clk
0:00:02.3]} 66... Qb4+ {[%clk 0:00:07.5]} 67. Kc1 {[%clk 0:00:02.7]} 67... Qf4+
{[%clk 0:00:07.7]} 68. Kb1 {[%clk 0:00:02.9]} 68... Qf5+ {[%clk 0:00:08]} 0-1

[Event "*** Titled Tuesday Blitz"]
[Site "Chess.com"]
[Date "2021.03.30"]
[Round "10"]
[White "Jungle_Jaguar"]
[Black "esapunov"]
[Result "1-0"]
[WhiteElo "2627"]
[BlackElo "2726"]
[TimeControl "180+1"]
[EndTime "11:59:22 PDT"]
[Termination "Jungle_Jaguar won on time"]

1. e4 {[%clk 0:03:00.9]} 1... c5 {[%clk 0:02:59.8]} 2. Nf3 {[%clk 0:03:00.7]}
2... d6 {[%clk 0:02:59.9]} 3. d4 {[%clk 0:03:01]} 3... cxd4 {[%clk 0:03:00.3]}
4. Nxd4 {[%clk 0:03:01.9]} 4... Nf6 {[%clk 0:03:00.8]} 5. Nc3 {[%clk 0:03:02.6]}
5... Nc6 {[%clk 0:03:01.3]} 6. Bg5 {[%clk 0:03:01.7]} 6... e6 {[%clk 0:03:01.6]}
7. Qd2 {[%clk 0:02:59.4]} 7... a6 {[%clk 0:03:01.8]} 8. O-O-O {[%clk 0:02:59.8]}
8... h6 {[%clk 0:03:02.1]} 9. Be3 {[%clk 0:02:57.8]} 9... Nxd4 {[%clk
0:03:01.5]} 10. Bxd4 {[%clk 0:02:57.6]} 10... b5 {[%clk 0:03:01.8]} 11. f3
{[%clk 0:02:55.4]} 11... Qa5 {[%clk 0:03:01.2]} 12. Kb1 {[%clk 0:02:53.9]} 12...
b4 {[%clk 0:03:01.2]} 13. Ne2 {[%clk 0:02:51.2]} 13... e5 {[%clk 0:03:01.3]} 14.
Be3 {[%clk 0:02:47.9]} 14... Be6 {[%clk 0:03:01.9]} 15. Nc1 {[%clk 0:02:48.5]}
15... d5 {[%clk 0:03:02.3]} 16. Nb3 {[%clk 0:02:47.2]} 16... Qc7 {[%clk
0:03:01.8]} 17. exd5 {[%clk 0:02:45.1]} 17... Nxd5 {[%clk 0:03:01.9]} 18. Bd3
{[%clk 0:02:45.6]} 18... Be7 {[%clk 0:03:01.6]} 19. Be4 {[%clk 0:02:45.4]} 19...
Rd8 {[%clk 0:03:01.7]} 20. Qf2 {[%clk 0:02:43.2]} 20... O-O {[%clk 0:03:01.7]}
21. Bxd5 {[%clk 0:02:42.7]} 21... Rxd5 {[%clk 0:03:01.5]} 22. Rxd5 {[%clk
0:02:41.5]} 22... Bxd5 {[%clk 0:03:01.8]} 23. Rd1 {[%clk 0:02:41.9]} 23... Be6
{[%clk 0:02:31.2]} 24. Nc5 {[%clk 0:02:38.4]} 24... Bf5 {[%clk 0:02:13]} 25. g4
{[%clk 0:02:33.2]} 25... Bc8 {[%clk 0:02:11.6]} 26. h4 {[%clk 0:02:20.7]} 26...
Rd8 {[%clk 0:02:10.2]} 27. Re1 {[%clk 0:02:15.4]} 27... Rd5 {[%clk 0:02:03.9]}
28. Nd3 {[%clk 0:02:12.4]} 28... a5 {[%clk 0:01:54.2]} 29. g5 {[%clk 0:02:05.3]}
29... h5 {[%clk 0:01:53.8]} 30. Bb6 {[%clk 0:02:00.3]} 30... Qb8 {[%clk
0:01:45.7]} 31. f4 {[%clk 0:01:59.7]} 31... Bf5 {[%clk 0:01:18.8]} 32. Nxe5
{[%clk 0:01:52.2]} 32... Bf8 {[%clk 0:01:06]} 33. Rc1 {[%clk 0:01:37.5]} 33...
a4 {[%clk 0:01:01.1]} 34. Nc4 {[%clk 0:01:34.1]} 34... Rb5 {[%clk 0:00:55.1]}
35. Bd4 {[%clk 0:01:30.6]} 35... Qd8 {[%clk 0:00:45.8]} 36. Ka1 {[%clk
0:01:18.6]} 36... Rd5 {[%clk 0:00:43.9]} 37. Bb6 {[%clk 0:01:17]} 37... Rd1
{[%clk 0:00:37.3]} 38. Kb1 {[%clk 0:01:06.9]} 38... Rxc1+ {[%clk 0:00:34.7]} 39.
Kxc1 {[%clk 0:01:07.8]} 39... Qb8 {[%clk 0:00:32.9]} 40. Bd4 {[%clk 0:01:05.2]}
40... b3 {[%clk 0:00:32.3]} 41. axb3 {[%clk 0:01:02.3]} 41... axb3 {[%clk
0:00:32.7]} 42. Be5 {[%clk 0:01:02.8]} 42... Qb5 {[%clk 0:00:31.4]} 43. Ne3
{[%clk 0:01:00.2]} 43... Be4 {[%clk 0:00:29.5]} 44. cxb3 {[%clk 0:00:35.4]}
44... Bc5 {[%clk 0:00:26.3]} 45. Qd2 {[%clk 0:00:30.3]} 45... Qxb3 {[%clk
0:00:25.7]} 46. Nc2 {[%clk 0:00:29.7]} 46... Qc4 {[%clk 0:00:22]} 47. Qc3 {[%clk
0:00:10.8]} 47... Qf1+ {[%clk 0:00:19.8]} 48. Qe1 {[%clk 0:00:10.9]} 48... Qg2
{[%clk 0:00:17.4]} 49. Qd2 {[%clk 0:00:09.2]} 49... Qh1+ {[%clk 0:00:15.3]} 50.
Qd1 {[%clk 0:00:08.3]} 50... Qxh4 {[%clk 0:00:14.6]} 51. b4 {[%clk 0:00:06.8]}
51... Bf8 {[%clk 0:00:12.5]} 52. b5 {[%clk 0:00:06.5]} 52... Qf2 {[%clk
0:00:11.6]} 53. Bd4 {[%clk 0:00:05.5]} 53... Qxf4+ {[%clk 0:00:10.5]} 54. Qd2
{[%clk 0:00:06.1]} 54... Qb8 {[%clk 0:00:08.4]} 55. b6 {[%clk 0:00:06.5]} 55...
h4 {[%clk 0:00:08]} 56. Qe1 {[%clk 0:00:05.5]} 56... Qb7 {[%clk 0:00:05.8]} 57.
Qxh4 {[%clk 0:00:04.8]} 57... Qc6 {[%clk 0:00:06.3]} 58. Qf2 {[%clk 0:00:04.8]}
58... Be7 {[%clk 0:00:05.3]} 59. Be3 {[%clk 0:00:03]} 59... Bd8 {[%clk
0:00:03.6]} 60. Kd1 {[%clk 0:00:03.6]} 60... Be7 {[%clk 0:00:03.7]} 61. Qd2
{[%clk 0:00:04.2]} 61... Qc4 {[%clk 0:00:03.1]} 62. Qe2 {[%clk 0:00:04.1]} 62...
Qxe2+ {[%clk 0:00:02.8]} 63. Kxe2 {[%clk 0:00:05]} 63... Bxc2 {[%clk 0:00:03.5]}
64. b7 {[%clk 0:00:05.1]} 64... Bd6 {[%clk 0:00:02]} 65. Ba7 {[%clk 0:00:05.4]}
1-0

[Event "*** Titled Tuesday Blitz"]
[Site "Chess.com"]
[Date "2021.03.30"]
[Round "10"]
[White "Tea99"]
[Black "noblerone"]
[Result "1/2-1/2"]
[WhiteElo "2286"]
[BlackElo "2391"]
[TimeControl "180+1"]
[EndTime "11:59:22 PDT"]
[Termination "Game drawn by stalemate"]

1. e4 {[%clk 0:03:00.9]} 1... c5 {[%clk 0:02:58]} 2. Nf3 {[%clk 0:02:59.8]} 2...
e6 {[%clk 0:02:58.3]} 3. d4 {[%clk 0:02:59.2]} 3... cxd4 {[%clk 0:02:59.2]} 4.
Nxd4 {[%clk 0:02:59.8]} 4... Qb6 {[%clk 0:02:59.6]} 5. Nb3 {[%clk 0:02:55.3]}
5... Qc7 {[%clk 0:02:59.4]} 6. Be2 {[%clk 0:02:53.5]} 6... Nf6 {[%clk
0:02:57.7]} 7. Nc3 {[%clk 0:02:52.6]} 7... Bb4 {[%clk 0:02:58.3]} 8. Qd3 {[%clk
0:02:42.1]} 8... d5 {[%clk 0:02:49.1]} 9. exd5 {[%clk 0:02:33.1]} 9... Nxd5
{[%clk 0:02:41.3]} 10. Bd2 {[%clk 0:02:32.9]} 10... Nxc3 {[%clk 0:02:37.1]} 11.
bxc3 {[%clk 0:02:29.9]} 11... Be7 {[%clk 0:02:33.8]} 12. O-O {[%clk 0:02:26.6]}
12... O-O {[%clk 0:02:31.4]} 13. Bf3 {[%clk 0:02:20]} 13... Nd7 {[%clk
0:02:29.6]} 14. Qe2 {[%clk 0:02:13.4]} 14... Nf6 {[%clk 0:02:22.3]} 15. Rfe1
{[%clk 0:01:58.5]} 15... Bd7 {[%clk 0:02:20.8]} 16. Nd4 {[%clk 0:01:55.7]} 16...
a6 {[%clk 0:02:16.8]} 17. Rab1 {[%clk 0:01:54.3]} 17... Rab8 {[%clk 0:02:10.9]}
18. g3 {[%clk 0:01:46.8]} 18... b5 {[%clk 0:01:42.5]} 19. Rb3 {[%clk 0:01:45.5]}
19... Rbc8 {[%clk 0:01:32.3]} 20. Bg2 {[%clk 0:01:29.3]} 20... Rfe8 {[%clk
0:01:16.6]} 21. h4 {[%clk 0:01:18.2]} 21... Bd6 {[%clk 0:01:07.2]} 22. Bg5
{[%clk 0:01:11.2]} 22... Nd5 {[%clk 0:01:01.3]} 23. Bd2 {[%clk 0:01:00.5]} 23...
e5 {[%clk 0:00:53.6]} 24. Bxd5 {[%clk 0:00:47.9]} 24... exd4 {[%clk 0:00:53.9]}
25. Qf3 {[%clk 0:00:46.1]} 25... Rxe1+ {[%clk 0:00:51.5]} 26. Bxe1 {[%clk
0:00:47]} 26... Be8 {[%clk 0:00:40.6]} 27. Bd2 {[%clk 0:00:37.4]} 27... Be5
{[%clk 0:00:32.6]} 28. cxd4 {[%clk 0:00:34.6]} 28... Bxd4 {[%clk 0:00:33.5]} 29.
c3 {[%clk 0:00:35]} 29... Bf6 {[%clk 0:00:25.4]} 30. Bf4 {[%clk 0:00:33.8]}
30... Qd7 {[%clk 0:00:22.1]} 31. Bb7 {[%clk 0:00:28.9]} 31... Rd8 {[%clk
0:00:17.5]} 32. Bxa6 {[%clk 0:00:15.5]} 32... Qa7 {[%clk 0:00:16.8]} 33. Bxb5
{[%clk 0:00:14.5]} 33... Qxa2 {[%clk 0:00:15]} 34. c4 {[%clk 0:00:11.6]} 34...
Qa1+ {[%clk 0:00:12.2]} 35. Kg2 {[%clk 0:00:11]} 35... Qd4 {[%clk 0:00:10.5]}
36. Be3 {[%clk 0:00:10.4]} 36... Qe5 {[%clk 0:00:10.1]} 37. Bxe8 {[%clk
0:00:10.2]} 37... Rxe8 {[%clk 0:00:11]} 38. Bf4 {[%clk 0:00:10.6]} 38... Qc5
{[%clk 0:00:10.8]} 39. Qd5 {[%clk 0:00:09.3]} 39... Qc8 {[%clk 0:00:09.3]} 40.
Rd3 {[%clk 0:00:09]} 40... h6 {[%clk 0:00:08.9]} 41. c5 {[%clk 0:00:09.3]} 41...
Rd8 {[%clk 0:00:07.9]} 42. Qc4 {[%clk 0:00:09.3]} 42... Rxd3 {[%clk 0:00:08.3]}
43. Qxd3 {[%clk 0:00:10]} 43... Qxc5 {[%clk 0:00:08]} 44. Qf3 {[%clk 0:00:10.4]}
44... Qf8 {[%clk 0:00:07.6]} 45. h5 {[%clk 0:00:10.1]} 45... Qe8 {[%clk
0:00:08]} 46. Qe3 {[%clk 0:00:09.3]} 46... Qxe3 {[%clk 0:00:06.6]} 47. Bxe3
{[%clk 0:00:10.2]} 47... Kf8 {[%clk 0:00:07.3]} 48. Kf3 {[%clk 0:00:10.8]} 48...
Ke8 {[%clk 0:00:08.2]} 49. Ke4 {[%clk 0:00:11.7]} 49... Kd7 {[%clk 0:00:09.1]}
50. Kd5 {[%clk 0:00:12.5]} 50... Be7 {[%clk 0:00:08.9]} 51. Bd4 {[%clk
0:00:12.6]} 51... g6 {[%clk 0:00:08.9]} 52. Bg7 {[%clk 0:00:09.8]} 52... gxh5
{[%clk 0:00:08.7]} 53. Bxh6 {[%clk 0:00:08.2]} 53... h4 {[%clk 0:00:09.3]} 54.
gxh4 {[%clk 0:00:09.1]} 54... Bxh4 {[%clk 0:00:10.1]} 55. f4 {[%clk 0:00:09.4]}
55... Bf6 {[%clk 0:00:09.2]} 56. f5 {[%clk 0:00:06.2]} 56... Be7 {[%clk
0:00:08.9]} 57. Bf4 {[%clk 0:00:06.4]} 57... Bf6 {[%clk 0:00:09.1]} 58. Be5
{[%clk 0:00:04.9]} 58... Be7 {[%clk 0:00:06.4]} 59. f6 {[%clk 0:00:04.1]} 59...
Bd8 {[%clk 0:00:06.5]} 60. Bd4 {[%clk 0:00:03.4]} 60... Bc7 {[%clk 0:00:06.7]}
61. Be5 {[%clk 0:00:02.4]} 61... Bxe5 {[%clk 0:00:06.6]} 62. Kxe5 {[%clk
0:00:03.3]} 62... Kc6 {[%clk 0:00:07.5]} 63. Ke4 {[%clk 0:00:02]} 63... Kd6
{[%clk 0:00:07.7]} 64. Kd4 {[%clk 0:00:02.6]} 64... Ke6 {[%clk 0:00:07.7]} 65.
Ke4 {[%clk 0:00:03.3]} 65... Kxf6 {[%clk 0:00:08.2]} 66. Kf4 {[%clk 0:00:04.2]}
66... Kg6 {[%clk 0:00:09]} 67. Kg4 {[%clk 0:00:04.6]} 67... f5+ {[%clk
0:00:09.9]} 68. Kf4 {[%clk 0:00:04.7]} 68... Kf6 {[%clk 0:00:10.8]} 69. Kf3
{[%clk 0:00:05.2]} 69... Kg5 {[%clk 0:00:11.7]} 70. Kg3 {[%clk 0:00:05.8]} 70...
f4+ {[%clk 0:00:12.6]} 71. Kf3 {[%clk 0:00:06.1]} 71... Kf5 {[%clk 0:00:13.5]}
72. Kf2 {[%clk 0:00:06.6]} 72... Kg4 {[%clk 0:00:14.4]} 73. Kg2 {[%clk
0:00:07.1]} 73... f3+ {[%clk 0:00:15.3]} 74. Kf2 {[%clk 0:00:07.6]} 74... Kf4
{[%clk 0:00:16.2]} 75. Kf1 {[%clk 0:00:08.1]} 75... Ke4 {[%clk 0:00:17.1]} 76.
Kf2 {[%clk 0:00:06.2]} 76... Kf4 {[%clk 0:00:16.9]} 77. Kf1 {[%clk 0:00:06.6]}
77... Ke3 {[%clk 0:00:17.8]} 78. Ke1 {[%clk 0:00:07]} 78... f2+ {[%clk
0:00:18.7]} 79. Kf1 {[%clk 0:00:07.6]} 79... Kf3 {[%clk 0:00:19.6]} 1/2-1/2

[Event "*** Titled Tuesday Blitz"]
[Site "Chess.com"]
[Date "2021.03.30"]
[Round "10"]
[White "RaphCamora"]
[Black "pastouche06"]
[Result "1-0"]
[WhiteElo "2422"]
[BlackElo "2540"]
[TimeControl "180+1"]
[EndTime "11:59:25 PDT"]
[Termination "RaphCamora won by resignation"]

1. e4 {[%clk 0:03:00.9]} 1... c6 {[%clk 0:03:00]} 2. d4 {[%clk 0:03:00.3]} 2...
d5 {[%clk 0:03:00.4]} 3. e5 {[%clk 0:03:00.9]} 3... Bf5 {[%clk 0:02:59.9]} 4.
Nd2 {[%clk 0:03:00.5]} 4... e6 {[%clk 0:02:59.7]} 5. Nb3 {[%clk 0:03:00.4]} 5...
Nd7 {[%clk 0:02:57.8]} 6. Nf3 {[%clk 0:03:00.1]} 6... a6 {[%clk 0:02:57.6]} 7.
Be3 {[%clk 0:02:58.7]} 7... Ne7 {[%clk 0:02:44.4]} 8. Be2 {[%clk 0:02:56]} 8...
Bg4 {[%clk 0:02:40.7]} 9. O-O {[%clk 0:02:39.6]} 9... Nf5 {[%clk 0:02:39.7]} 10.
h3 {[%clk 0:02:39.7]} 10... Bxf3 {[%clk 0:02:39.5]} 11. Bxf3 {[%clk 0:02:39.2]}
11... Be7 {[%clk 0:02:38.5]} 12. Bg4 {[%clk 0:02:29.9]} 12... g6 {[%clk
0:02:33.2]} 13. a4 {[%clk 0:02:26.7]} 13... a5 {[%clk 0:02:23.9]} 14. Bxf5
{[%clk 0:02:24.4]} 14... exf5 {[%clk 0:02:19.3]} 15. Rc1 {[%clk 0:02:18.1]}
15... Nf8 {[%clk 0:02:17]} 16. Bd2 {[%clk 0:02:01]} 16... Ne6 {[%clk 0:02:04.4]}
17. Qe1 {[%clk 0:01:59.3]} 17... O-O {[%clk 0:01:33.9]} 18. Bh6 {[%clk
0:01:47.8]} 18... Re8 {[%clk 0:01:32.9]} 19. Qe2 {[%clk 0:01:47.5]} 19... Bg5
{[%clk 0:01:26.2]} 20. Bxg5 {[%clk 0:01:44.7]} 20... Qxg5 {[%clk 0:01:27.1]} 21.
Qe3 {[%clk 0:01:43.4]} 21... f4 {[%clk 0:01:18.2]} 22. Qf3 {[%clk 0:01:43.1]}
22... Qf5 {[%clk 0:01:18.3]} 23. Rfe1 {[%clk 0:01:33.8]} 23... h5 {[%clk
0:01:13.6]} 24. Qd3 {[%clk 0:01:33.8]} 24... Qxd3 {[%clk 0:00:57.6]} 25. cxd3
{[%clk 0:01:34.7]} 25... Re7 {[%clk 0:00:57.5]} 26. h4 {[%clk 0:01:31.8]} 26...
Ng7 {[%clk 0:00:53.1]} 27. g3 {[%clk 0:01:29.6]} 27... fxg3 {[%clk 0:00:50.5]}
28. fxg3 {[%clk 0:01:29.3]} 28... Nf5 {[%clk 0:00:50.8]} 29. Kg2 {[%clk
0:01:29.8]} 29... Kg7 {[%clk 0:00:49.6]} 30. Rc2 {[%clk 0:01:24.6]} 30... Ra6
{[%clk 0:00:46.9]} 31. Rf2 {[%clk 0:01:10.4]} 31... Rb6 {[%clk 0:00:43.5]} 32.
Nxa5 {[%clk 0:01:10.1]} 32... Nxd4 {[%clk 0:00:43.4]} 33. Rf4 {[%clk 0:01:04.2]}
33... Ne6 {[%clk 0:00:39.5]} 34. Rf2 {[%clk 0:00:59.4]} 34... Nc5 {[%clk
0:00:38.7]} 35. Rd1 {[%clk 0:00:37.3]} 35... Ra6 {[%clk 0:00:36.3]} 36. b4
{[%clk 0:00:36.3]} 36... Nxa4 {[%clk 0:00:32.9]} 37. Ra1 {[%clk 0:00:33.2]}
37... Nc3 {[%clk 0:00:26.5]} 38. d4 {[%clk 0:00:25.5]} 38... Nb5 {[%clk
0:00:26.2]} 39. Rd1 {[%clk 0:00:24.3]} 39... Nc3 {[%clk 0:00:19]} 40. Rd3 {[%clk
0:00:23.3]} 40... Ne4 {[%clk 0:00:19.2]} 41. Rc2 {[%clk 0:00:23.1]} 41... Rb6
{[%clk 0:00:19.3]} 42. Rb3 {[%clk 0:00:22.5]} 42... f6 {[%clk 0:00:18.1]} 43.
exf6+ {[%clk 0:00:21.4]} 43... Nxf6 {[%clk 0:00:19]} 44. Rf2 {[%clk 0:00:19.6]}
44... Ng4 {[%clk 0:00:18.5]} 45. Rd2 {[%clk 0:00:17.7]} 45... Re3 {[%clk
0:00:17.5]} 46. Rxe3 {[%clk 0:00:16.7]} 46... Nxe3+ {[%clk 0:00:18.4]} 47. Kf3
{[%clk 0:00:16.4]} 47... Nf5 {[%clk 0:00:16.4]} 48. Nb3 {[%clk 0:00:16.9]} 48...
Rxb4 {[%clk 0:00:16]} 49. Nc5 {[%clk 0:00:17.5]} 49... Nxd4+ {[%clk 0:00:15.2]}
50. Rxd4 {[%clk 0:00:16.8]} 50... Rxd4 {[%clk 0:00:15.9]} 51. Ne6+ {[%clk
0:00:17.7]} 51... Kf6 {[%clk 0:00:16.1]} 52. Nxd4 {[%clk 0:00:18.6]} 52... g5
{[%clk 0:00:14.7]} 53. hxg5+ {[%clk 0:00:17.4]} 53... Kxg5 {[%clk 0:00:15.6]}
54. Ne6+ {[%clk 0:00:17.3]} 54... Kf5 {[%clk 0:00:14.4]} 55. Nd8 {[%clk
0:00:15.4]} 55... c5 {[%clk 0:00:14.8]} 56. Nxb7 {[%clk 0:00:15.2]} 56... c4
{[%clk 0:00:14.9]} 57. Nc5 {[%clk 0:00:12.1]} 57... Ke5 {[%clk 0:00:13.9]} 58.
Na4 {[%clk 0:00:09.9]} 58... Kd4 {[%clk 0:00:13.6]} 59. Nb6 {[%clk 0:00:09.4]}
59... c3 {[%clk 0:00:11.6]} 60. Ke2 {[%clk 0:00:08.6]} 60... Kc5 {[%clk
0:00:11.9]} 61. Na4+ {[%clk 0:00:07.6]} 61... Kb4 {[%clk 0:00:11.7]} 62. Nb6
{[%clk 0:00:07.7]} 62... d4 {[%clk 0:00:10.4]} 63. Kd3 {[%clk 0:00:07.2]} 63...
Kb3 {[%clk 0:00:10.9]} 64. Nc4 {[%clk 0:00:03.2]} 64... c2 {[%clk 0:00:11.8]}
65. Nd2+ {[%clk 0:00:03.1]} 65... Kb2 {[%clk 0:00:12]} 66. Nc4+ {[%clk
0:00:03.4]} 66... Kb3 {[%clk 0:00:11.1]} 67. Nd2+ {[%clk 0:00:03.6]} 67... Kb2
{[%clk 0:00:11.4]} 68. Nc4+ {[%clk 0:00:04.2]} 68... Kb1 {[%clk 0:00:05.9]} 69.
Na3+ {[%clk 0:00:03.9]} 69... Kb2 {[%clk 0:00:05.7]} 70. Nxc2 {[%clk 0:00:04.8]}
70... Kb3 {[%clk 0:00:05.7]} 71. Nxd4+ {[%clk 0:00:05]} 71... Kb4 {[%clk
0:00:05.7]} 72. Ke4 {[%clk 0:00:05.3]} 1-0